bitfinex/quotes_SOLUSD_20260203
["timestamp","ask_amount","ask_price","bid_price","bid_amount"]
[1770082548495,7.65619786,103.74,103.72,0.45612257]
[1770082550087,7.65619786,103.74,103.72,10.09730508]
[1770082551595,7.65619786,103.73,103.7,0.4724596]
[1770082551768,7.65619786,103.73,103.7,10.11482974]
[1770082552467,8.12776909,103.73,103.7,9.64237014]
[1770082552676,8.12776909,103.72,103.69,10.11606735]
[1770082552873,7.65619786,103.72,103.69,10.11606735]
[1770082554582,7.65619786,103.72,103.7,10.1156355]
[1770082555097,7.65619786,103.72,103.69,10.1160525]
[1770082555098,8.12776909,103.72,103.69,10.1160525]
[1770082555296,8.12776909,103.72,103.69,0.4724596]
[1770082555482,8.12776909,103.72,103.69,10.11655254]
[1770082556500,0.47157123,103.71,103.69,9.64409294]
[1770082557405,8.12776909,103.72,103.69,9.64409294]
[1770082557690,8.12776909,103.72,103.69,10.11655254]
[1770082558400,3.33434861,103.72,103.69,10.11655254]
[1770082560802,2.86277738,103.72,103.7,0.4724596]
[1770082561600,2.86277738,103.75,103.71,2.86277738]
[1770082561785,2.86277738,103.75,103.72,0.4724596]
[1770082562200,3.33434861,103.75,103.72,0.4724596]
[1770082562800,3.33434861,103.75,103.7,36.61370529]
[1770082562801,2.86277738,103.74,103.7,10.11538366]
[1770082562987,3.33434861,103.73,103.7,10.11538366]
[1770082563301,3.33434861,103.74,103.71,0.4724596]
[1770082563881,3.33434861,103.74,103.71,10.11440875]
[1770082564077,2.86277738,103.74,103.71,10.11440875]
[1770082565305,3.33434861,103.74,103.71,0.4724596]
[1770082565484,3.33434861,103.73,103.7,10.115134]
[1770082565805,2.86277738,103.72,103.7,10.115134]
[1770082566810,2.86277738,103.73,103.71,0.4724596]
[1770082569311,0.47157123,103.71,103.68,0.1]
[1770082569498,2.86277738,103.7,103.68,0.1]
[1770082569887,2.86277738,103.71,103.69,0.4724596]
[1770082570507,2.86277738,103.7,103.68,0.5724596]
[1770082571013,3.33434861,103.71,103.68,0.5724596]
[1770082573109,3.33434861,103.7,103.68,0.1]
[1770082573507,2.86277738,103.71,103.69,0.4724596]
[1770082573895,36.44081077,103.73,103.69,0.4724596]
[1770082573896,29.66277738,103.73,103.69,0.4724596]
[1770082574091,29.66277738,103.73,103.7,0.4724596]
[1770082574391,26.8,103.73,103.7,0.4724596]
[1770082575203,3.33316941,103.74,103.71,0.4724596]
[1770082576809,3.33316941,103.75,103.71,0.4724596]
[1770082577225,3.33316941,103.75,103.72,0.4724596]
[1770082577993,3.33316941,103.73,103.7,0.4724596]
[1770082578197,2.86159818,103.72,103.7,0.4724596]
[1770082579808,0.47157123,103.73,103.7,0.4724596]
[1770082579809,3.33316941,103.73,103.7,0.4724596]
[1770082585620,2.86159818,103.73,103.71,0.47688493]
[1770082586000,3.33572698,103.73,103.7,0.47688493]
[1770082587022,3.33572698,103.73,103.7,10.1199863]
[1770082588001,2.86159818,103.74,103.71,0.47688493]
[1770082588325,27.2741288,103.75,103.71,0.47688493]
[1770082588326,30.13572698,103.75,103.71,0.47688493]
[1770082588822,3.33572698,103.75,103.71,0.47688493]
[1770082590323,2.86159818,103.76,103.72,0.47688493]
[1770082590929,3.33572698,103.76,103.72,0.47688493]
[1770082591621,2.86159818,103.75,103.72,0.47688493]
[1770082593334,3.33572698,103.75,103.72,0.47688493]
[1770082593511,2.86159818,103.74,103.72,0.47688493]
[1770082593924,3.33572698,103.73,103.7,10.11963823]
[1770082594133,2.86159818,103.72,103.7,0.47688493]
[1770082594627,0.4741288,103.73,103.7,0.47688493]
[1770082594628,3.33572698,103.73,103.7,0.47688493]
[1770082595508,2.86159818,103.74,103.7,0.47688493]
[1770082595703,3.33572698,103.74,103.7,0.47688493]
[1770082596428,2.86159818,103.74,103.71,0.47688493]
[1770082596636,39.77371846,103.76,103.72,0.47688493]
[1770082596824,2.86159818,103.75,103.72,0.47688493]
[1770082597530,2.86159818,103.75,103.71,0.47688493]
[1770082597531,3.33572698,103.74,103.71,0.47688493]
[1770082597713,3.33572698,103.73,103.7,0.47688493]
[1770082597914,2.86159818,103.72,103.7,0.47688493]
[1770082598531,3.33572698,103.73,103.7,0.47688493]
[1770082602735,9.63962331,103.74,103.7,10.11999569]
[1770082602736,3.33572698,103.74,103.7,10.11999569]
[1770082603034,12.97523679,103.74,103.71,0.47688493]
[1770082603235,2.86159818,103.74,103.71,0.47688493]
[1770082603936,3.33572698,103.74,103.71,0.47688493]
[1770082607638,3.33572698,103.75,103.72,0.47688493]
[1770082607935,12.97371243,103.76,103.72,0.47688493]
[1770082608349,2.86159818,103.75,103.72,0.47688493]
[1770082614837,12.9736246,103.76,103.72,0.47688493]
[1770082615217,0.45934,103.75,103.72,0.47688493]
[1770082615919,12.9588358,103.76,103.72,0.47688493]
[1770082616115,3.32093818,103.76,103.73,0.46761038]
[1770082616419,2.86159818,103.76,103.73,0.46761038]
[1770082616624,3.32093818,103.76,103.73,0.46761038]
[1770082616836,2.86159818,103.75,103.73,0.46761038]
[1770082618642,2.86159818,103.74,103.72,0.46761038]
[1770082620340,2.86159818,103.75,103.73,0.46761038]
[1770082620931,30.10093818,103.76,103.73,0.46761038]
[1770082622040,3.32093818,103.79,103.74,2.86159818]
[1770082622218,3.32093818,103.79,103.73,9.64033001]
[1770082622219,3.32093818,103.8,103.77,0.46761038]
[1770082622424,3.32093818,103.82,103.79,0.46761038]
[1770082622624,3.32093818,103.83,103.79,0.46761038]
[1770082623141,3.32093818,103.81,103.78,0.46761038]
[1770082623847,2.86159818,103.8,103.78,0.46761038]
[1770082624019,0.45934,103.78,103.74,10.10662241]
[1770082624224,2.86159818,103.79,103.73,10.10801367]
[1770082624225,3.32093818,103.76,103.73,10.10801367]
[1770082624445,2.86159818,103.75,103.72,10.10855474]
[1770082624645,2.86159818,103.74,103.72,10.10855474]
[1770082624840,2.86159818,103.75,103.72,10.10855474]
[1770082625037,2.86159818,103.76,103.73,10.10743551]
[1770082625226,2.86159818,103.77,103.74,0.46761038]
[1770082625826,2.86159818,103.76,103.74,0.46761038]
[1770082626936,2.86159818,103.76,103.73,10.10743551]
[1770082627134,3.32093818,103.76,103.73,10.10743551]
[1770082627335,0.45934,103.76,103.73,0.46761038]
[1770082627534,2.86159818,103.75,103.72,10.10860409]
[1770082629060,2.86159818,103.75,103.73,9.64033116]
[1770082629857,2.86159818,103.75,103.72,0.46761038]
[1770082629858,2.86159818,103.75,103.72,10.10840844]
[1770082632433,2.86159818,103.76,103.72,9.64079806]
[1770082632636,3.32093818,103.77,103.73,0.46761038]
[1770082632937,30.10093818,103.78,103.74,0.46761038]
[1770082633248,2.86159818,103.77,103.74,10.10660103]
[1770082633559,3.32093818,103.75,103.72,10.10806308]
[1770082634661,2.86159818,103.75,103.72,10.10806308]
[1770082634870,2.86159818,103.77,103.75,0.46761038]
[1770082635338,2.86159818,103.77,103.74,0.46761038]
[1770082635657,3.32093818,103.77,103.74,0.46761038]
[1770082635861,3.32093818,103.76,103.73,10.10802298]
[1770082636164,2.86159818,103.76,103.73,10.10802298]
[1770082636336,3.319469,103.77,103.73,10.10802298]
[1770082637648,2.860129,103.76,103.73,10.10802298]
[1770082637960,3.319469,103.75,103.72,10.10861078]
[1770082638259,2.860129,103.76,103.74,0.46761038]
[1770082639462,3.319469,103.75,103.72,10.10846196]
[1770082640861,2.860129,103.75,103.72,10.10846196]
[1770082641251,0.47825712,103.76,103.72,10.10846196]
[1770082641460,2.860129,103.75,103.72,10.10846196]
[1770082643465,2.860129,103.75,103.72,0.47872467]
[1770082644568,2.860129,103.74,103.71,34.22662527]
[1770082644863,2.860129,103.74,103.72,0.47872467]
[1770082645039,3.33838612,103.75,103.72,0.47872467]
[1770082647445,2.860129,103.75,103.72,10.11934074]
[1770082647646,2.860129,103.76,103.73,0.47872467]
[1770082648657,3.33838612,103.78,103.74,0.47872467]
[1770082648856,3.33838612,103.79,103.75,0.47872467]
[1770082649567,3.33838612,103.79,103.76,0.47872467]
[1770082651571,3.33838612,103.79,103.76,10.11622656]
[1770082651767,2.860129,103.82,103.76,9.63750189]
[1770082651946,2.860129,103.83,103.8,0.47872467]
[1770082652266,0.47825712,103.83,103.8,0.47872467]
[1770082652962,3.33838612,103.82,103.78,0.47872467]
[1770082653354,2.860129,103.81,103.78,10.11402344]
[1770082653955,2.860129,103.81,103.78,9.63529877]
[1770082654158,2.860129,103.81,103.78,10.11402344]
[1770082654351,2.860129,103.81,103.79,0.47872467]
[1770082654794,3.33838612,103.82,103.79,0.47872467]
[1770082655373,3.33838612,103.83,103.8,10.11263603]
[1770082655564,0.47825712,103.83,103.8,10.11263603]
[1770082657068,3.33838612,103.83,103.8,0.47872467]
[1770082657253,3.33838612,103.81,103.78,10.11408705]
[1770082657451,3.33838612,103.81,103.78,0.47872467]
[1770082657670,0.47825712,103.79,103.76,10.1161476]
[1770082657857,3.33838612,103.79,103.76,10.1161476]
[1770082658366,9.63335272,103.81,103.76,10.1161476]
[1770082658367,2.860129,103.8,103.76,10.1161476]
[1770082658553,3.33838612,103.8,103.76,10.1161476]
[1770082658753,3.33838612,103.8,103.77,10.11537328]
[1770082658955,2.860129,103.8,103.77,10.11537328]
[1770082659155,2.860129,103.8,103.77,10.11508457]
[1770082659953,3.33838612,103.8,103.77,10.11508457]
[1770082660566,2.860129,103.8,103.77,10.11508457]
[1770082664684,3.33838612,103.8,103.77,10.11508457]
[1770082665076,2.860129,103.79,103.77,0.47872467]
[1770082665584,3.33838612,103.8,103.77,0.47872467]
[1770082670091,3.33838612,103.8,103.77,10.11540399]
[1770082670471,3.34650051,103.81,103.78,0.45429579]
[1770082670695,2.860129,103.8,103.78,0.45429579]
[1770082671800,3.34650051,103.8,103.77,10.09097511]
[1770082674975,3.34650051,103.81,103.78,0.45429579]
[1770082676201,3.34650051,103.81,103.78,10.090001]
[1770082676399,3.34650051,103.8,103.77,10.09047233]
[1770082677001,3.34650051,103.81,103.78,10.08996548]
[1770082678000,2.860129,103.83,103.79,0.45429579]
[1770082678193,3.34650051,103.84,103.8,0.45429579]
[1770082678399,3.34650051,103.84,103.8,10.08745505]
[1770082678578,3.34650051,103.84,103.81,0.45429579]
[1770082680208,2.860129,103.84,103.81,0.45429579]
[1770082680500,0.2,103.85,103.83,10.08503114]
[1770082680891,0.2,103.85,103.84,0.45429579]
[1770082682117,27.26637151,103.89,103.85,0.45429579]
[1770082682329,0.2,103.9,103.87,10.08107647]
[1770082682492,0.2,103.9,103.88,0.21625703]
[1770082682907,3.060129,103.9,103.87,9.62678068]
[1770082683114,3.34650051,103.89,103.86,9.62751811]
[1770082683509,0.48637151,103.89,103.86,9.62751811]
[1770082683795,3.34650051,103.88,103.85,9.62883067]
[1770082684194,3.34650051,103.88,103.84,9.6297142]
[1770082684195,2.860129,103.87,103.84,9.6297142]
[1770082684396,2.860129,103.87,103.84,10.08400999]
[1770082685115,3.34650051,103.86,103.82,10.08565672]
[1770082685314,3.34650051,103.86,103.83,10.08540836]
[1770082685617,3.34650051,103.87,103.84,10.0844907]
[1770082686004,3.34650051,103.87,103.84,0.45429579]
[1770082687532,3.34650051,103.87,103.84,10.08438327]
[1770082688227,0.48637151,103.89,103.85,0.45429579]
[1770082688392,2.860129,103.89,103.86,0.45429579]
[1770082691018,3.54650051,103.9,103.86,10.08249879]
[1770082692006,0.48637151,103.89,103.86,0.45429579]
[1770082692211,0.48637151,103.87,103.84,10.08407142]
[1770082692920,0.48637151,103.86,103.83,0.45429579]
[1770082693124,3.34650051,103.87,103.83,9.63098931]
[1770082693328,3.34650051,103.87,103.84,0.45429579]
[1770082693827,26.76,103.89,103.85,10.08346593]
[1770082693828,0.48637151,103.88,103.85,10.08346593]
[1770082694005,30.10650051,103.89,103.86,0.45429579]
[1770082694198,3.34650051,103.89,103.86,0.45429579]
[1770082694404,3.34650051,103.89,103.85,0.45429579]
[1770082694405,3.34650051,103.88,103.85,0.45429579]
[1770082696106,3.34650051,103.88,103.85,10.08351135]
[1770082696306,2.860129,103.88,103.85,10.08351135]
[1770082696507,2.85372502,103.88,103.85,10.08351135]
[1770082697130,3.34009653,103.89,103.86,0.45429579]
[1770082697306,3.54009653,103.9,103.86,0.45429579]
[1770082698102,2.85372502,103.89,103.85,12.48294058]
[1770082698408,2.85372502,103.87,103.85,0.45429579]
[1770082698808,3.34009653,103.89,103.86,0.45429579]
[1770082699426,3.34009653,103.89,103.86,10.08253626]
[1770082700455,2.85372502,103.89,103.87,0.49673783]
[1770082701032,30.29922977,103.9,103.87,0.49673783]
[1770082701529,3.33922977,103.88,103.85,10.12548621]
[1770082702730,2.85372502,103.88,103.86,0.49673783]
[1770082707640,3.33922977,103.88,103.84,10.1265814]
[1770082707820,3.33922977,103.87,103.84,10.1265814]
[1770082708017,3.33922977,103.85,103.82,0.49673783]
[1770082708215,9.62671139,103.88,103.81,10.12927685]
[1770082708216,3.33922977,103.84,103.81,10.12927685]
[1770082709420,3.33922977,103.84,103.82,0.49673783]
[1770082709421,2.85372502,103.84,103.82,0.49673783]
[1770082709931,3.33922977,103.85,103.82,0.49673783]
[1770082710340,3.33922977,103.86,103.82,0.49673783]
[1770082710536,30.09922977,103.87,103.83,0.49673783]
[1770082711216,3.33922977,103.87,103.83,10.12759556]
[1770082711726,3.33922977,103.86,103.83,10.12759556]
[1770082714144,0.48550475,103.89,103.84,0.49673783]
[1770082714325,3.33922977,103.89,103.85,0.49673783]
[1770082716146,3.33922977,103.88,103.85,0.49673783]
[1770082716732,2.85372502,103.87,103.85,0.49673783]
[1770082717548,3.33922977,103.88,103.85,0.49673783]
[1770082718846,3.33922977,103.88,103.85,10.12599901]
[1770082719043,0.2,103.9,103.88,0.49673783]
[1770082719246,0.2,103.9,103.89,0.49673783]
[1770082719451,1e-08,103.91,103.9,0.49673783]
[1770082720239,1e-08,103.91,103.9,10.1213769]
[1770082721842,1e-08,103.91,103.89,12.97558715]
[1770082722049,1e-08,103.91,103.9,10.1213769]
[1770082724457,1e-08,103.91,103.89,10.12181285]
[1770082725533,0.48550476,103.91,103.88,10.12310367]
[1770082725761,3.33922978,103.91,103.88,10.12310367]
[1770082725955,0.48550475,103.9,103.87,10.1238252]
[1770082727057,3.33922978,103.91,103.88,0.49673783]
[1770082727836,3.33922978,103.91,103.87,9.62708737]
[1770082727837,0.48550475,103.89,103.86,10.12461216]
[1770082728141,2.85372502,103.9,103.87,10.1240477]
[1770082728142,3.33922977,103.9,103.87,10.1240477]
[1770082728452,0.48550475,103.9,103.87,10.1240477]
[1770082728645,3.33922978,103.91,103.88,0.49673783]
[1770082729748,0.48550476,103.91,103.88,0.49673783]
[1770082729949,0.48550476,103.91,103.88,3.35046285]
[1770082730350,1e-08,103.91,103.89,0.46680068]
[1770082730671,1e-08,103.91,103.89,10.09220822]
[1770082733147,1e-08,103.91,103.89,10.09227798]
[1770082734544,1e-08,103.91,103.86,3.3205257]
[1770082734545,0.48084705,103.9,103.86,3.3205257]
[1770082734750,3.33457207,103.9,103.86,3.3205257]
[1770082735252,3.33457207,103.9,103.87,0.46680068]
[1770082736246,3.33457207,103.9,103.87,10.0936985]
[1770082736746,3.33457207,103.9,103.86,10.09460013]
[1770082736945,0.48084705,103.89,103.86,10.09460013]
[1770082739069,3.33457207,103.9,103.87,0.46680068]
[1770082740667,3.33457207,103.9,103.86,37.01918977]
[1770082740668,0.48084705,103.89,103.86,37.01918977]
[1770082740878,2.85372502,103.9,103.84,10.09650759]
[1770082740879,3.33457207,103.87,103.84,10.09650759]
[1770082741049,2.85372502,103.86,103.84,10.09650759]
[1770082741973,3.33457207,103.87,103.84,10.09650759]
[1770082742668,3.33457207,103.86,103.83,10.09741515]
[1770082743972,3.33457207,103.85,103.82,9.63163005]
[1770082744772,3.33457207,103.85,103.82,10.09843073]
[1770082745073,3.33457207,103.84,103.81,10.09937082]
[1770082748276,0.48084705,103.83,103.8,10.10065729]
[1770082748578,0.48084705,103.82,103.79,10.10114001]
[1770082749656,0.48084705,103.82,103.8,9.63371238]
[1770082749857,0.48084705,103.85,103.82,0.46680068]
[1770082750070,3.33457207,103.86,103.83,0.46680068]
[1770082750669,3.33457207,103.86,103.82,12.9522533]
[1770082751062,9.62767209,103.87,103.84,0.46680068]
[1770082751063,0.48084705,103.87,103.84,0.46680068]
[1770082751480,27.24084705,103.88,103.85,0.46680068]
[1770082751778,0.48084705,103.88,103.85,3.3205257]
[1770082752665,3.33457207,103.88,103.84,3.3205257]
[1770082752866,3.33457207,103.88,103.84,12.95050737]
[1770082753071,0.48084705,103.88,103.84,12.95050737]
[1770082754778,3.33457207,103.87,103.84,10.09678235]
[1770082756365,0.48084705,103.86,103.83,10.09742024]
[1770082757068,0.48084705,103.86,103.84,9.63019126]
[1770082757266,3.33514271,103.87,103.84,10.09699194]
[1770082757677,3.33514271,103.88,103.85,0.46680068]
[1770082758967,0.48084705,103.87,103.84,10.09699194]
[1770082760189,3.33514271,103.87,103.84,10.09699194]
[1770082762699,3.31336112,103.86,103.83,10.09390907]
[1770082762997,0.45906546,103.86,103.84,10.09316829]
[1770082763170,3.31336112,103.87,103.84,10.09316829]
[1770082764172,3.31336112,103.87,103.84,0.46322762]
[1770082764896,0.45906546,103.86,103.83,10.09386703]
[1770082768477,39.69930668,103.89,103.85,0.46322762]
[1770082769094,30.07336112,103.89,103.85,0.46322762]
[1770082769392,0.45906546,103.88,103.85,0.46322762]
[1770082770902,0.45906546,103.88,103.85,10.09189375]
[1770082771682,3.31336112,103.86,103.83,10.09388706]
[1770082772377,3.31336112,103.86,103.84,9.63011086]
[1770082772696,0.45906546,103.86,103.84,9.63011086]
[1770082774279,3.31336112,103.86,103.83,10.09384786]
[1770082774479,0.45906546,103.85,103.83,9.63062024]
[1770082775406,0.45906546,103.85,103.82,10.09482056]
[1770082775618,2.85429566,103.83,103.81,10.09563047]
[1770082779779,3.31336112,103.83,103.8,10.09674365]
[1770082779989,3.31336112,103.82,103.79,10.09749552]
[1770082782702,0.45906546,103.84,103.81,0.46322762]
[1770082784308,0.45906546,103.83,103.8,3.31752328]
[1770082784511,0.45906546,103.83,103.8,0.46322762]
[1770082784716,3.31336112,103.83,103.8,10.09698875]
[1770082786621,0.45906546,103.83,103.8,10.09698875]
[1770082789502,0.45906546,103.82,103.79,0.46322762]
[1770082790720,3.31336112,103.82,103.79,0.46322762]
[1770082791013,3.31336112,103.82,103.79,10.09790731]
[1770082791817,2.85429566,103.82,103.8,0.49945962]
[1770082792025,3.30812183,103.84,103.8,0.49945962]
[1770082792322,0.45382617,103.84,103.81,0.49945962]
[1770082792509,3.30812183,103.84,103.81,0.49945962]
[1770082793195,0.45382617,103.82,103.79,0.49945962]
[1770082793400,3.30812183,103.82,103.79,0.49945962]
[1770082794309,3.30812183,103.82,103.79,10.13349365]
[1770082795925,2.85429566,103.84,103.8,0.49945962]
[1770082796100,3.30812183,103.84,103.8,0.49945962]
[1770082796301,3.30812183,103.83,103.8,0.49945962]
[1770082797436,3.30812183,103.83,103.8,10.13315699]
[1770082798721,3.30812183,103.82,103.79,0.49945962]
[1770082799022,3.30812183,103.81,103.78,10.13522759]
[1770082799221,3.30812183,103.83,103.79,0.49945962]
[1770082800202,53.68717109,103.86,103.8,0.49945962]
[1770082800203,3.30812183,103.84,103.8,0.49945962]
[1770082801319,3.30812183,103.84,103.81,9.63298333]
[1770082801913,0.45382617,103.83,103.81,9.63298333]
[1770082803529,0.45382617,103.83,103.8,9.63354604]
[1770082803732,0.45382617,103.82,103.8,10.13300566]
[1770082804032,3.30812183,103.83,103.8,10.13300566]
[1770082804534,0.45382617,103.83,103.8,10.13300566]
[1770082804726,0.45382617,103.84,103.81,0.49945962]
[1770082805423,30.06812183,103.87,103.82,3.35375528]
[1770082805629,30.06812183,103.87,103.83,10.1299299]
[1770082805810,0.45382617,103.86,103.83,10.1299299]
[1770082807836,27.21382617,103.87,103.84,0.49945962]
[1770082808009,0.45382617,103.88,103.85,3.35375528]
[1770082808633,0.45382617,103.88,103.85,0.49945962]
[1770082809035,0.45382617,103.87,103.83,37.06204507]
[1770082809216,0.45382617,103.87,103.84,0.49945962]
[1770082809946,0.45382617,103.88,103.85,0.49945962]
[1770082810238,0.45382617,103.89,103.86,0.49945962]
[1770082810440,0.45382617,103.89,103.86,3.35375528]
[1770082811228,0.45382617,103.89,103.86,12.98153239]
[1770082811508,0.45382618,103.91,103.88,0.49945962]
[1770082811714,0.45382618,103.91,103.87,3.35375528]
[1770082811920,0.45382617,103.9,103.87,3.35375528]
[1770082813435,0.45382617,103.9,103.87,12.98071677]
[1770082813831,0.45382618,103.91,103.88,3.35375528]
[1770082814124,0.45382618,103.91,103.9,0.49945962]
[1770082814125,1e-08,103.91,103.9,0.49945962]
[1770082814434,1e-08,103.91,103.89,3.35375528]
[1770082815717,1e-08,103.91,103.89,12.47933497]
[1770082816018,1e-08,103.91,103.89,12.97879459]
[1770082816424,1e-08,103.91,103.89,12.97548393]
[1770082817442,1e-08,103.91,103.9,0.49945962]
[1770082818146,1e-08,103.91,103.89,0.49945962]
[1770082818640,0.45382618,103.91,103.88,12.97640617]
[1770082818837,0.45382618,103.91,103.88,10.12542117]
[1770082819721,0.45382617,103.9,103.87,10.12637046]
[1770082820221,3.30481117,103.9,103.87,10.12637046]
[1770082823045,2.850985,103.88,103.85,9.62876285]
[1770082823223,3.35054614,103.88,103.85,9.62876285]
[1770082823721,3.35054614,103.88,103.85,10.1218425]
[1770082823922,0.49956114,103.88,103.86,9.62833737]
[1770082824129,3.35054614,103.89,103.86,10.12141702]
[1770082825152,0.49956114,103.88,103.86,9.62833737]
[1770082825443,3.35054614,103.88,103.85,10.12209564]
[1770082826441,3.35054614,103.9,103.87,0.49307965]
[1770082826641,3.35054614,103.89,103.86,10.12095957]
[1770082827348,3.35054615,103.91,103.87,0.49307965]
[1770082827546,3.35054615,103.91,103.88,0.49307965]
[1770082828129,3.35054615,103.91,103.86,33.69874454]
[1770082828130,0.49956114,103.89,103.86,33.69874454]
[1770082828330,3.35054614,103.89,103.86,9.62787992]
[1770082828647,9.62373825,103.91,103.87,0.49307965]
[1770082828648,0.49956114,103.9,103.87,0.49307965]
[1770082829960,0.49956114,103.89,103.86,10.12095957]
[1770082832341,0.49956114,103.9,103.87,0.49307965]
[1770082832655,0.49956114,103.89,103.86,34.19182419]
[1770082832833,3.35054614,103.89,103.86,10.12095957]
[1770082833033,0.49956114,103.88,103.86,9.62787992]
[1770082833243,3.35054614,103.88,103.85,10.12192365]
[1770082833447,0.49956114,103.87,103.85,9.628844]
[1770082833750,0.49956114,103.86,103.83,0.49307965]
[1770082834143,0.49956114,103.86,103.84,9.63009379]
[1770082834550,3.35054614,103.89,103.85,3.34406465]
[1770082834746,0.49956114,103.9,103.87,0.49307965]
[1770082835457,0.49956115,103.91,103.88,0.49307965]
[1770082836156,1e-08,103.91,103.89,10.11864515]
[1770082838965,1e-08,103.91,103.9,0.49307965]
[1770082840858,1e-08,103.91,103.9,10.11771872]
[1770082841644,1e-08,103.91,103.9,12.47562407]
[1770082842044,1e-08,103.91,103.9,12.96870372]
[1770082843063,1e-08,103.91,103.9,10.11771872]
[1770082843558,0.1,103.93,103.9,36.53722176]
[1770082844055,0.1,103.93,103.92,3.34406465]
[1770082844056,1e-08,103.93,103.92,3.34406465]
[1770082844236,1e-08,103.93,103.92,2.850985]
[1770082844855,1e-08,103.93,103.9,33.68623676]
[1770082844856,1e-08,103.93,103.91,12.4737771]
[1770082845353,1e-08,103.93,103.91,36.53305917]
[1770082845765,1e-08,103.93,103.92,2.850985]
[1770082845941,1e-08,103.93,103.91,33.68207417]
[1770082845942,1e-08,103.93,103.91,36.53305917]
[1770082846141,1e-08,103.93,103.91,36.90194076]
[1770082846664,1e-08,103.93,103.91,34.05095576]
[1770082846959,0.49956115,103.93,103.91,9.6227921]
[1770082847166,0.49956115,103.93,103.9,3.21986659]
[1770082847167,0.49956114,103.91,103.85,0.36888159]
[1770082847346,3.35054614,103.9,103.87,9.62699824]
[1770082847660,0.49956114,103.89,103.87,9.62699824]
[1770082847865,3.35054614,103.89,103.87,9.62739839]
[1770082848051,3.35054614,103.91,103.87,9.99627998]
[1770082848246,3.35054614,103.91,103.87,12.84726498]
[1770082848557,3.35054614,103.91,103.87,36.9158122]
[1770082848754,0.49956115,103.93,103.89,3.21986659]
[1770082849061,0.49956115,103.93,103.9,9.62463907]
[1770082849362,0.49956114,103.92,103.9,9.62463907]
[1770082849746,3.35054615,103.93,103.9,9.62463907]
[1770082851869,3.30670342,103.91,103.88,0.36888159]
[1770082852870,3.30670342,103.91,103.88,9.62604822]
[1770082853769,3.30670342,103.9,103.87,9.6269665]
[1770082854166,0.45571842,103.88,103.86,9.62777553]
[1770082854550,3.30670342,103.88,103.86,9.62777553]
[1770082855278,0.45571842,103.88,103.86,9.62777553]
[1770082855776,0.45571842,103.89,103.86,9.99665712]
[1770082857663,0.45571842,103.89,103.86,17.63767196]
[1770082857853,8.09673326,103.91,103.87,8.00989643]
[1770082858051,8.09673326,103.91,103.87,0.36888159]
[1770082859069,8.09673326,103.91,103.87,8.00989643]
[1770082859242,8.09673326,103.92,103.88,8.00989643]
[1770082859447,0.45571842,103.92,103.88,8.00989643]
[1770082859866,0.45571842,103.92,103.89,9.6255655]
[1770082860470,0.45571842,103.91,103.89,9.6255655]
[1770082860649,0.45571842,103.91,103.88,24.4350728]
[1770082860650,0.45571842,103.9,103.88,9.62612347]
[1770082861448,8.09673326,103.9,103.87,9.99544731]
[1770082861648,0.45571842,103.9,103.87,9.99544731]
[1770082861984,7.64101484,103.91,103.88,0.36888159]
[1770082862273,0.45571842,103.91,103.88,8.00989643]
[1770082862442,1e-08,103.93,103.88,7.64101484]
[1770082862759,1e-08,103.93,103.87,33.69511294]
[1770082862760,8.09673327,103.93,103.89,8.00989643]
[1770082863161,8.09673327,103.93,103.89,0.36888159]
[1770082864582,1e-08,103.93,103.9,17.6345355]
[1770082866870,0.2,103.96,103.92,7.92533798]
[1770082867077,0.2,103.96,103.93,7.64101484]
[1770082867375,0.2,103.96,103.94,0.36888159]
[1770082867672,0.2,103.96,103.94,0.32139641]
[1770082868049,1e-08,103.96,103.95,7.64101484]
[1770082868254,1e-08,103.96,103.94,7.64101484]
[1770082868456,1e-08,103.96,103.93,7.64101484]
[1770082868654,0.45571843,103.96,103.94,9.62093515]
[1770082868866,0.45571843,103.96,103.93,9.62148341]
[1770082869067,8.09673327,103.96,103.93,9.62148341]
[1770082869278,0.45571842,103.95,103.93,9.62148341]
[1770082870259,8.09673327,103.96,103.93,9.62148341]
[1770082870578,8.09673327,103.96,103.93,9.94287982]
[1770082871276,0.45571843,103.96,103.93,33.99753198]
[1770082871583,1e-08,103.96,103.94,7.96241125]
[1770082872075,1e-08,103.96,103.93,33.67613557]
[1770082872076,8.09673327,103.96,103.93,33.67613557]
[1770082872658,1e-08,103.96,103.94,7.64101484]
[1770082873280,1e-08,103.97,103.96,9.94048067]
[1770082873467,0.55571842,104.0,103.97,0.32139641]
[1770082873785,0.55571842,104.0,103.98,7.64101484]
[1770082874283,0.55571842,104.0,103.97,7.96241125]
[1770082875362,0.55571842,104.0,103.98,9.61723408]
[1770082876585,0.1,104.0,103.98,17.25824892]
[1770082876783,6.4125837,104.01,103.99,7.96241125]
[1770082876987,0.45571842,104.0,103.98,9.61723408]
[1770082878280,0.45571842,103.99,103.97,9.6176493]
[1770082878683,0.45571842,103.98,103.96,9.61855694]
[1770082878977,0.45571842,103.96,103.94,9.62093515]
[1770082879177,0.45571842,103.97,103.94,41.29968506]
[1770082879383,0.45571842,103.98,103.94,41.62108147]